lending/lending_fUSD_20241211
["ID","MTS","AMOUNT","RATE_DAILY","PERIOD"]
[344996036,1733910650526,-424.39,0.00011099,2]
[344996037,1733910650535,-500.0,0.00011099,2]
[344996038,1733910650546,-500.0,0.00011099,2]
[344996039,1733910650556,-500.0,0.00011099,2]
[344996040,1733910650566,-500.0,0.00011099,2]
[344996041,1733910650576,-500.0,0.00011099,2]
[344996042,1733910650586,-500.0,0.00011099,2]
[344996043,1733910650596,-500.0,0.00011099,2]
[344996044,1733910650606,-500.0,0.00011099,2]
[344996045,1733910650615,-500.0,0.00011099,2]
[344996046,1733910650624,-500.0,0.00011099,2]
[344996047,1733910650633,-280.51567529,0.00011099,2]
[344996048,1733910650642,-500.0,0.00011099,2]
[344996049,1733910650652,-500.0,0.00011099,2]
[344996050,1733910650662,-500.0,0.00011099,2]
[344996051,1733910650672,-500.0,0.00011099,2]
[344996052,1733910650682,-500.0,0.00011099,2]
[344996053,1733910650692,-476.20178674,0.00011099,2]
[344996054,1733910650702,-500.0,0.00011099,2]
[344996055,1733910650711,-500.0,0.00011099,2]
[344996056,1733910650720,-500.0,0.00011099,2]
[344996057,1733910650730,-500.0,0.00011099,2]
[344996058,1733910650740,-575.9,0.00011099,2]
[344996059,1733910650750,-500.0,0.00011099,2]
[344996060,1733910650759,-500.0,0.00011099,2]
[344996061,1733910650770,-500.0,0.00011099,2]
[344996062,1733910650780,-500.0,0.00011099,2]
[344996063,1733910650790,-500.0,0.00011099,2]
[344996064,1733910650800,-500.0,0.00011099,2]
[344996065,1733910650809,-500.0,0.00011099,2]
[344996066,1733910650819,-199.90026639,0.00011099,2]
[344996067,1733910650829,-500.0,0.00011099,2]
[344996068,1733910650838,-500.0,0.00011099,2]
[344996069,1733910650847,-500.0,0.00011099,2]
[344996070,1733910650857,-500.0,0.00011099,2]
[344996071,1733910650866,-500.0,0.00011099,2]
[344996072,1733910650876,-333.32,0.00011099,2]
[344996073,1733910650887,-1822.91,0.00011099,2]
[344996074,1733910650896,-1822.91,0.00011099,2]
[344996075,1733910650905,-1822.91,0.00011099,2]
[344996076,1733910650914,-1822.91,0.00011099,2]
[344996077,1733910650924,-1822.91,0.00011099,2]
[344996078,1733910650933,-1822.91,0.00011099,2]
[344996079,1733910650943,-1822.91,0.00011099,2]
[344996080,1733910650953,-1822.91,0.00011099,2]
[344996081,1733910650963,-1822.91,0.00011099,2]
[344996082,1733910650973,-1822.91,0.00011099,2]
[344996083,1733910650983,-1822.91,0.00011099,2]
[344996084,1733910650992,-1822.91,0.00011099,2]
[344996085,1733910651002,-1822.91,0.00011099,2]
[344996086,1733910651011,-1822.91,0.00011099,2]
[344996087,1733910651022,-1822.91,0.00011099,2]
[344996088,1733910651031,-1822.91,0.00011099,2]
[344996089,1733910651041,-1823.08,0.00011099,2]
[344996090,1733910651050,-500.0,0.00011099,2]
[344996091,1733910651059,-500.0,0.00011099,2]
[344996092,1733910651070,-500.0,0.00011099,2]
[344996093,1733910651080,-500.0,0.00011099,2]
[344996094,1733910651089,-500.0,0.00011099,2]
[344996095,1733910651099,-500.0,0.00011099,2]
[344996096,1733910651109,-500.0,0.00011099,2]
[344996097,1733910651119,-500.0,0.00011099,2]
[344996098,1733910651128,-387.18817929,0.00011099,2]
[344996099,1733910651138,-500.0,0.00011099,2]
[344996100,1733910651150,-500.0,0.00011099,2]
[344996101,1733910651159,-500.0,0.00011099,2]
[344996102,1733910651169,-500.0,0.00011099,2]
[344996103,1733910651179,-500.0,0.00011099,2]
[344996104,1733910651188,-500.0,0.00011099,2]
[344996105,1733910651198,-500.0,0.00011099,2]
[344996106,1733910651207,-500.0,0.00011099,2]
[344996107,1733910651217,-500.0,0.00011099,2]
[344996108,1733910651227,-500.0,0.00011099,2]
[344996109,1733910651237,-500.0,0.00011099,2]
[344996110,1733910651246,-500.0,0.00011099,2]
[344996111,1733910651256,-402.52,0.00011099,2]
[344996112,1733910651266,-500.0,0.00011099,2]
[344996113,1733910651276,-500.0,0.00011099,2]
[344996114,1733910651285,-500.0,0.00011099,2]
[344996115,1733910651295,-500.0,0.00011099,2]
[344996116,1733910651305,-500.0,0.00011099,2]
[344996117,1733910651315,-500.0,0.00011099,2]
[344996118,1733910651324,-500.0,0.00011099,2]
[344996119,1733910651334,-315.58,0.00011099,2]
[344996120,1733910651344,-500.0,0.00011099,2]
[344996121,1733910651353,-500.0,0.00011099,2]
[344996122,1733910651362,-500.0,0.00011099,2]
[344996123,1733910651372,-500.0,0.00011099,2]
[344996124,1733910651381,-500.0,0.00011099,2]
[344996125,1733910651391,-500.0,0.00011099,2]
[344996126,1733910651401,-186.27,0.00011099,2]
[344996127,1733910651411,-557.92,0.00011099,2]
[344996128,1733910651420,-557.92,0.00011099,2]
[344996129,1733910651429,-557.92,0.00011099,2]
[344996130,1733910651439,-557.92,0.00011099,2]
[344996131,1733910651448,-557.92,0.00011099,2]
[344996132,1733910651458,-558.08,0.00011099,2]
[344996133,1733910651468,-834.97,0.00011099,2]
[344996134,1733910651477,-834.97,0.00011099,2]
[344996135,1733910651487,-834.97,0.00011099,2]
[344996136,1733910651496,-834.97,0.00011099,2]
[344996137,1733910651506,-834.97,0.00011099,2]
[344996138,1733910651517,-834.97,0.00011099,2]
[344996139,1733910651526,-834.97,0.00011099,2]
[344996140,1733910651535,-834.97,0.00011099,2]
[344996141,1733910651544,-834.97,0.00011099,2]
[344996142,1733910651554,-834.97,0.00011099,2]
[344996143,1733910651563,-834.97,0.00011099,2]
[344996144,1733910651573,-834.97,0.00011099,2]
[344996145,1733910651582,-834.97,0.00011099,2]
[344996146,1733910651591,-834.97,0.00011099,2]
[344996147,1733910651600,-834.97,0.00011099,2]
[344996148,1733910651609,-834.97,0.00011099,2]
[344996149,1733910651619,-835.15,0.00011099,2]
[344996150,1733910651628,-500.0,0.00011099,2]
[344996151,1733910651637,-500.0,0.00011099,2]
[344996152,1733910651647,-500.0,0.00011099,2]
[344996153,1733910651655,-500.0,0.00011099,2]
[344996154,1733910651668,-500.0,0.00011099,2]
[344996155,1733910651678,-500.0,0.00011099,2]
[344996156,1733910651688,-425.59,0.00011099,2]
[344996157,1733910651697,-500.0,0.00011099,2]
[344996158,1733910651706,-500.0,0.00011099,2]
[344996159,1733910651715,-500.0,0.00011099,2]
[344996160,1733910651724,-500.0,0.00011099,2]
[344996161,1733910651733,-500.0,0.00011099,2]
[344996162,1733910651743,-500.0,0.00011099,2]
[344996163,1733910651753,-500.0,0.00011099,2]
[344996164,1733910651761,-500.0,0.00011099,2]
[344996165,1733910651772,-500.0,0.00011099,2]
[344996166,1733910651782,-500.0,0.00011099,2]
[344996167,1733910651791,-500.0,0.00011099,2]
[344996168,1733910651801,-500.0,0.00011099,2]
[344996169,1733910651810,-500.0,0.00011099,2]
[344996170,1733910651819,-500.0,0.00011099,2]
[344996171,1733910651829,-500.0,0.00011099,2]
[344996172,1733910651838,-439.95755506,0.00011099,2]
[344996173,1733910651848,-500.0,0.00011099,2]
[344996174,1733910651857,-500.0,0.00011099,2]
[344996175,1733910651867,-500.0,0.00011099,2]
[344996176,1733910651876,-500.0,0.00011099,2]
[344996177,1733910651885,-500.0,0.00011099,2]
[344996178,1733910651895,-500.0,0.00011099,2]
[344996179,1733910651904,-500.0,0.00011099,2]
[344996180,1733910651914,-500.0,0.00011099,2]
[344996181,1733910651923,-500.0,0.00011099,2]
[344996182,1733910651932,-500.0,0.00011099,2]
[344996183,1733910651941,-500.0,0.00011099,2]
[344996184,1733910651951,-500.0,0.00011099,2]
[344996185,1733910651960,-500.0,0.00011099,2]
[344996186,1733910651970,-500.0,0.00011099,2]
[344996187,1733910651979,-500.0,0.00011099,2]
[344996188,1733910651989,-284.74035508,0.00011099,2]
[344996189,1733910651998,-500.0,0.00011099,2]
[344996190,1733910652007,-500.0,0.00011099,2]
[344996191,1733910652017,-500.0,0.00011099,2]
[344996192,1733910652027,-500.0,0.00011099,2]
[344996193,1733910652037,-500.0,0.00011099,2]
[344996194,1733910652046,-500.0,0.00011099,2]
[344996195,1733910652055,-500.0,0.00011099,2]
[344996196,1733910652066,-500.0,0.00011099,2]
[344996197,1733910652076,-500.0,0.00011099,2]
[344996198,1733910652085,-500.0,0.00011099,2]
[344996199,1733910652095,-500.0,0.00011099,2]
[344996200,1733910652105,-500.0,0.00011099,2]
[344996201,1733910652115,-500.0,0.00011099,2]
[344996202,1733910652124,-500.0,0.00011099,2]
[344996203,1733910652134,-500.0,0.00011099,2]
[344996204,1733910652144,-500.0,0.00011099,2]
[344996205,1733910652153,-500.0,0.00011099,2]
[344996206,1733910652162,-500.0,0.00011099,2]
[344996207,1733910652172,-500.0,0.00011099,2]
[344996208,1733910652182,-500.0,0.00011099,2]
[344996209,1733910652191,-500.0,0.00011099,2]
[344996210,1733910652200,-445.96778068,0.00011099,2]
[344996211,1733910652209,-500.0,0.00011099,2]
[344996212,1733910652218,-500.0,0.00011099,2]
[344996213,1733910652227,-406.59660918,0.00011099,2]
[344996214,1733910652236,-674.75,0.00011099,2]
[344996215,1733910652245,-674.75,0.00011099,2]
[344996216,1733910652254,-674.75,0.00011099,2]
[344996217,1733910652263,-674.75,0.00011099,2]
[344996218,1733910652276,-674.75,0.00011099,2]
[344996219,1733910652285,-674.75,0.00011099,2]
[344996220,1733910652294,-674.75,0.00011099,2]
[344996221,1733910652304,-674.75,0.00011099,2]
[344996222,1733910652313,-674.75,0.00011099,2]
[344996223,1733910652322,-674.75,0.00011099,2]
[344996224,1733910652331,-674.75,0.00011099,2]
[344996225,1733910652341,-674.75,0.00011099,2]
[344996226,1733910652351,-674.75,0.00011099,2]
[344996227,1733910652360,-674.75,0.00011099,2]
[344996228,1733910652369,-674.75,0.00011099,2]
[344996229,1733910652378,-674.75,0.00011099,2]
[344996230,1733910652387,-674.95278057,0.00011099,2]
[344996231,1733910652396,-500.0,0.00011099,2]
[344996232,1733910652405,-500.0,0.00011099,2]
[344996233,1733910652415,-500.0,0.00011099,2]
[344996234,1733910652424,-500.0,0.00011099,2]
[344996235,1733910652433,-500.0,0.00011099,2]
[344996236,1733910652442,-500.0,0.00011099,2]
[344996237,1733910652451,-330.28,0.00011099,2]
[344996238,1733910652460,-746.11,0.00011099,2]
[344996239,1733910652469,-746.11,0.00011099,2]
[344996240,1733910652478,-746.11,0.00011099,2]
[344996241,1733910652487,-746.11,0.00011099,2]
[344996242,1733910652496,-746.11,0.00011099,2]
[344996243,1733910652506,-746.11,0.00011099,2]
[344996244,1733910652515,-746.11,0.00011099,2]
[344996245,1733910652526,-746.11,0.00011099,2]
[344996246,1733910652535,-746.11,0.00011099,2]
[344996247,1733910652545,-746.11,0.00011099,2]
[344996248,1733910652554,-746.11,0.00011099,2]
[344996249,1733910652564,-746.11,0.00011099,2]
[344996250,1733910652573,-746.11,0.00011099,2]
[344996251,1733910652583,-746.11,0.00011099,2]
[344996252,1733910652592,-658.0,0.00011099,2]
[344996253,1733910652601,-746.11,0.00011099,2]
[344996254,1733910652610,-658.0,0.00011099,2]
[344996255,1733910652619,-746.11,0.00011099,2]
[344996256,1733910652629,-658.0,0.00011099,2]
[344996257,1733910652638,-746.19173371,0.00011099,2]
[344996258,1733910652647,-658.0,0.00011099,2]
[344996259,1733910652656,-658.0,0.00011099,2]
[344996260,1733910652665,-658.0,0.00011099,2]
[344996261,1733910652674,-658.0,0.00011099,2]
[344996262,1733910652683,-658.0,0.00011099,2]
[344996263,1733910652692,-658.0,0.00011099,2]
[344996264,1733910652702,-658.0,0.00011099,2]
[344996265,1733910652711,-658.0,0.00011099,2]
[344996266,1733910652720,-658.0,0.00011099,2]
[344996267,1733910652730,-658.0,0.00011099,2]
[344996268,1733910652739,-658.0,0.00011099,2]
[344996269,1733910652749,-658.0,0.00011099,2]
[344996270,1733910652758,-658.0,0.00011099,2]
[344996271,1733910652768,-658.19,0.00011099,2]
[344996272,1733910652961,-500.0,0.00011099,2]
[344996273,1733910652971,-500.0,0.00011099,2]
[344996274,1733910652980,-500.0,0.00011099,2]
[344996275,1733910652990,-500.0,0.00011099,2]
[344996276,1733910652999,-321.12,0.00011099,2]
[344996277,1733910653008,-1581.57,0.00011099,2]
[344996278,1733910653019,-1581.57,0.00011099,2]
[344996279,1733910653028,-1581.57,0.00011099,2]
[344996280,1733910653038,-1581.57,0.00011099,2]
[344996281,1733910653047,-1581.57,0.00011099,2]
[344996282,1733910653057,-1581.57,0.00011099,2]
[344996283,1733910653068,-1581.57,0.00011099,2]
[344996284,1733910653078,-1581.57,0.00011099,2]
[344996285,1733910653087,-1581.57,0.00011099,2]
[344996286,1733910653097,-1581.57,0.00011099,2]
[344996287,1733910653106,-1581.57,0.00011099,2]
[344996288,1733910653116,-1581.57,0.00011099,2]
[344996289,1733910653125,-1581.57,0.00011099,2]
[344996290,1733910653135,-1581.57,0.00011099,2]
[344996291,1733910653147,-1581.57,0.00011099,2]
[344996292,1733910653155,-500.0,0.00011099,2]
[344996293,1733910653165,-1581.57,0.00011099,2]
[344996294,1733910653175,-500.0,0.00011099,2]
[344996295,1733910653184,-1581.68,0.00011099,2]
[344996296,1733910653193,-152.84047423,0.00011099,2]
[344996297,1733910653202,-500.0,0.00011099,2]
[344996298,1733910653211,-500.0,0.00011099,2]
[344996299,1733910653220,-500.0,0.00011099,2]
[344996300,1733910653230,-390.51977119,0.00011099,2]
[344996301,1733910653240,-144824.95480901,0.000111,2]
[344996302,1733910653271,-21600.0,0.000111,2]
[344996303,1733910653283,-10714.47,0.000111,2]
[344996307,1733911091107,1014.49,8.219e-05,2]
[344996323,1733911831927,-1000.0,9.68e-05,2]
[344996324,1733911831937,-1108.03,9.71e-05,2]
[344996325,1733911831946,-250.0,9.821e-05,2]
[344996326,1733911831956,-250.0,9.844e-05,2]
[344996327,1733911831965,-1975.24,9.909e-05,2]
[344996328,1733911831975,-200.0,9.955e-05,2]
[344996329,1733911831984,-760.4,0.00010037,2]
[344996330,1733911831994,-760.4,0.00010037,2]
[344996331,1733911832003,-150.0,0.00010046,2]
[344996332,1733911832012,-156.37,0.00010047,2]
[344996333,1733911832022,-57221.88838813,0.00010047,2]
[344996334,1733911832031,-435.45,0.00010274,2]
[344996335,1733911832041,-435.45,0.00010274,2]
[344996336,1733911832050,-870.34,0.00010278,2]
[344996337,1733911832060,-364.42,0.00010278,2]
[344996338,1733911832069,-760.4,0.0001031,2]
[344996339,1733911832078,-760.4,0.0001031,2]
[344996340,1733911832087,-11322.55,0.0001032,2]
[344996341,1733911832096,-150.0,0.00010378,2]
[344996342,1733911832106,-150.0,0.00010378,2]
[344996343,1733911832115,-150.0,0.000104,2]
[344996344,1733911832124,-760.4,0.00010412,2]
[344996345,1733911832133,-760.4,0.00010412,2]
[344996346,1733911832143,-760.4,0.00010412,2]
[344996347,1733911832152,-760.4,0.00010412,2]
[344996348,1733911832162,-760.4,0.00010412,2]
[344996349,1733911832171,-760.4,0.00010412,2]
[344996350,1733911832180,-760.4,0.00010412,2]
[344996351,1733911832189,-760.4,0.00010412,2]
[344996352,1733911832199,-760.4,0.00010412,2]
[344996353,1733911832208,-760.4,0.00010412,2]
[344996354,1733911832217,-11580.0,0.00010422,2]
[344996355,1733911832228,-11575.0,0.00010422,2]
[344996356,1733911832238,-11575.0,0.00010422,2]
[344996357,1733911832247,-11575.0,0.00010422,2]
[344996358,1733911832257,-11575.0,0.00010422,2]
[344996359,1733911832266,-375.50625856,0.00010422,2]
[344996360,1733911832288,-11199.49374144,0.00010422,2]
[344996361,1733911832297,-753.42,0.00010422,2]
[344996362,1733911832306,-7667.48625856,0.00010422,2]
[344996363,1733911832317,-2332.50374144,0.00010422,2]
[344996364,1733911832328,-3076.53,0.00010422,2]
[344996366,1733911832337,-150.0,0.00010424,2]
[344996368,1733911832346,-760.4,0.00010431,2]
[344996370,1733911832355,-768.77,0.00010441,2]
[344996372,1733911832365,-768.77,0.00010441,2]
[344996374,1733911832374,-768.77,0.00010441,2]
[344996375,1733911832383,-768.77,0.00010441,2]
[344996377,1733911832392,-768.77,0.00010441,2]
[344996378,1733911832404,-2.72473384,0.00010465,2]
[344996382,1733911837868,-757.67526616,0.00010465,2]
[344996384,1733911837878,-1014.49,0.00010475,2]
[344996386,1733911837887,-999.99,0.00010475,2]
[344996388,1733911837897,-150.99,0.00010475,2]
[344996390,1733911837906,-316.7451789,0.00010475,2]
[344996392,1733911837917,-9683.2448211,0.00010475,2]
[344996394,1733911837927,-761.68,0.00010478,2]
[344996395,1733911837936,-760.4,0.0001049,2]
[344996396,1733911837945,-768.77,0.000105,2]
[344996397,1733911837955,-150.0,0.000105,2]
[344996398,1733911837964,-365.1,0.0001055,2]
[344996399,1733911837974,-280.45,0.00010578,2]
[344996400,1733911837984,-150.0,0.00010578,2]
[344996401,1733911837994,-364.42,0.00010578,2]
[344996402,1733911838004,-150.0,0.00010578,2]
[344996403,1733911838014,-150.0,0.00010578,2]
[344996404,1733911838023,-150.0,0.00010578,2]
[344996405,1733911838033,-364.42,0.00010578,2]
[344996406,1733911838042,-150.0,0.00010578,2]
[344996407,1733911838051,-150.0,0.00010578,2]
[344996408,1733911838061,-364.42,0.00010578,2]
[344996409,1733911838071,-150.0,0.00010578,2]
[344996410,1733911838080,-364.42,0.00010578,2]
[344996411,1733911838090,-150.0,0.00010578,2]
[344996412,1733911838099,-322.79,0.00010578,2]
[344996413,1733911838108,-423.7,0.00010578,2]
[344996414,1733911838118,-760.4,0.0001059,2]
[344996415,1733911838127,-768.77,0.000106,2]
[344996416,1733911838136,-879.62,0.000106,2]
[344996417,1733911838145,-251.88,0.000106,2]
[344996418,1733911838154,-150.0,0.000106,2]
[344996419,1733911838163,-150.0,0.000106,2]
[344996420,1733911838173,-150.0,0.000106,2]
[344996421,1733911838182,-768.77,0.000106,2]
[344996422,1733911838191,-300.0,0.00010678,2]
[344996423,1733911838201,-155.34,0.00010678,2]
[344996424,1733911838211,-415.68,0.00010678,2]
[344996425,1733911838220,-150.33,0.00010678,2]
[344996426,1733911838231,-975.06,0.00010678,2]
[344996427,1733911838241,-975.06,0.00010678,2]
[344996428,1733911838250,-364.42,0.00010678,2]
[344996429,1733911838260,-364.42,0.00010678,2]
[344996430,1733911838269,-975.06,0.00010678,2]
[344996431,1733911838279,-760.4,0.0001079,2]
[344996432,1733911838288,-1000.0,0.000108,2]
[344996433,1733911838298,-5171.2876,0.000108,2]
[344996434,1733911838307,-228.2934,0.000108,2]
[344996435,1733911838316,-760.4,0.00010848,2]
[344996436,1733911838326,-36525.15161427,0.00010858,2]
[344996438,1733911838337,-5024.82931398,0.00010858,2]
[344996440,1733911838348,-5474.79587175,0.00010858,2]
[344996442,1733911838357,-40485.20412825,0.00010888,2]
[344996448,1733911838406,-278.40311,0.00010888,2]
[344996450,1733911838417,-4947.09547806,0.00010888,2]
[344996452,1733911838428,-43960.0,0.00010888,2]
[344996454,1733911838439,-9926.0,0.00010888,2]
[344996456,1733911838453,-782.78,0.00010888,2]
[344996459,1733911838464,-2525.90847655,0.00010888,2]
[344996460,1733911838478,-10742.85761069,0.00010888,2]
[344996463,1733911838488,-2691.39943017,0.00010888,2]
[344996464,1733911838502,-29380.15204941,0.00010888,2]
[344996467,1733911838513,-7900.0,0.00010888,2]
[344996469,1733911838525,-133517.81764042,0.00010888,2]
[344996471,1733911838536,-702392.62317649,0.00010888,2]
[344996491,1733911838884,-292684.31040686,0.00010888,2]
[344996492,1733911838907,-1000.0,0.0001089,2]
[344996493,1733911838928,-43650.42467707,0.000109,2]
[344996494,1733911838951,-1108.03,0.00010923,2]
[344996495,1733911838973,-500.0,0.00010958,2]
[344996496,1733911838994,-500.0,0.00010958,2]
[344996497,1733911839014,-500.0,0.00010958,2]
[344996498,1733911839035,-500.0,0.00010958,2]
[344996499,1733911839058,-500.0,0.00010958,2]
[344996500,1733911839080,-500.0,0.00010958,2]
[344996501,1733911839102,-310.41334439,0.00010958,2]
[344996502,1733911839124,-500.0,0.00010958,2]
[344996503,1733911839145,-500.0,0.00010958,2]
[344996504,1733911839166,-500.0,0.00010958,2]
[344996505,1733911839188,-500.0,0.00010958,2]
[344996506,1733911839209,-500.0,0.00010958,2]
[344996507,1733911839232,-500.0,0.00010958,2]
[344996508,1733911839254,-500.0,0.00010958,2]
[344996509,1733911839275,-500.0,0.00010958,2]
[344996510,1733911839297,-500.0,0.00010958,2]
[344996511,1733911839318,-500.0,0.00010958,2]
[344996512,1733911839339,-500.0,0.00010958,2]
[344996513,1733911839361,-500.0,0.00010958,2]
[344996514,1733911839381,-500.0,0.00010958,2]
[344996515,1733911839403,-500.0,0.00010958,2]
[344996516,1733911839424,-500.0,0.00010958,2]
[344996517,1733911839445,-500.0,0.00010958,2]
[344996518,1733911839469,-500.66,0.00010958,2]
[344996519,1733911839494,-500.0,0.00010958,2]
[344996520,1733911839516,-500.0,0.00010958,2]
[344996521,1733911839539,-500.0,0.00010958,2]
[344996522,1733911839561,-500.0,0.00010958,2]
[344996523,1733911839584,-500.0,0.00010958,2]
[344996524,1733911839607,-500.0,0.00010958,2]
[344996527,1733911839629,-500.0,0.00010958,2]
[344996530,1733911839651,-500.0,0.00010958,2]
[344996531,1733911839672,-511.26,0.00010958,2]
[344996532,1733911839694,-500.0,0.00010958,2]
[344996533,1733911839716,-500.0,0.00010958,2]
[344996534,1733911839738,-500.0,0.00010958,2]
[344996535,1733911839762,-500.0,0.00010958,2]
[344996536,1733911839784,-500.0,0.00010958,2]
[344996537,1733911839805,-500.0,0.00010958,2]
[344996538,1733911839826,-500.0,0.00010958,2]
[344996539,1733911839848,-500.0,0.00010958,2]
[344996540,1733911839869,-388.48,0.00010958,2]
[344996541,1733911839892,-500.0,0.00010958,2]
[344996542,1733911840091,-500.0,0.00010958,2]
[344996543,1733911840113,-500.0,0.00010958,2]
[344996544,1733911840135,-500.0,0.00010958,2]
[344996545,1733911840156,-500.0,0.00010958,2]
[344996546,1733911840178,-500.0,0.00010958,2]
[344996547,1733911840200,-500.0,0.00010958,2]
[344996548,1733911840221,-500.0,0.00010958,2]
[344996549,1733911840243,-500.0,0.00010958,2]
[344996550,1733911840264,-524.99761049,0.00010958,2]
[344996552,1733911840285,-500.0,0.00010958,2]
[344996555,1733911840307,-500.0,0.00010958,2]
[344996556,1733911840327,-500.0,0.00010958,2]
[344996557,1733911840350,-500.0,0.00010958,2]
[344996558,1733911840371,-272.53800006,0.00010958,2]
[344996559,1733911840393,-500.0,0.00010958,2]
[344996560,1733911840414,-405.38908242,0.00010958,2]
[344996561,1733911840435,-150.0,0.00010959,2]
[344996562,1733911840458,-5614.03,0.00010959,2]
[344996563,1733911840479,-813.84,0.00010959,2]
[344996564,1733911840500,-200.0,0.00010972,2]
[344996565,1733911840521,-3277.3254,0.00010987,2]
[344996566,1733911840544,-2890.39425032,0.0001099,2]
[344996567,1733911840565,-2341.174,0.00010997,2]
[344996568,1733911840587,-180.398,0.00010997,2]
[344996569,1733911840608,-1763.85733546,0.00010999,2]
[344996570,1733911840628,-1763.85733544,0.00010999,2]
[344996571,1733911840652,-1763.85733544,0.00010999,2]
[344996572,1733911840673,-1763.85733544,0.00011,2]
[344996573,1733911840693,-1763.85733544,0.00011,2]
[344996574,1733911840715,-1763.85733544,0.00011,2]
[344996575,1733911840736,-1763.85733544,0.00011,2]
[344996576,1733911840757,-14659.38048949,0.00011,2]
[344996577,1733911840778,-879.15036473,0.00011,2]
[344996578,1733911840798,-682.20923953,0.00011,2]
[344996579,1733911840819,-259.88893005,0.00011,2]
[344996580,1733911840840,-306.62166597,0.00011,2]
[344996581,1733911840860,-267.05500513,0.00011,2]
[344996582,1733911840880,-200.0,0.00011011,2]
[344996583,1733911840901,-641.22154269,0.00011073,2]
[344996584,1733911840921,-159.97755951,0.00011073,2]
[344996585,1733911840942,-500.0,0.00011073,2]
[344996586,1733911840963,-500.0,0.00011073,2]
[344996587,1733911840986,-352.12277277,0.00011073,2]
[344996588,1733911841008,-13057.49203696,0.00011087,2]
[344996589,1733911841029,-154.1539658,0.00011088,2]
[344996590,1733911841052,-2714.0167485,0.00011088,2]
[344996591,1733911841073,-7247.9101035,0.00011088,2]
[344996592,1733911841095,-3103.8229825,0.00011088,2]
[344996593,1733911841116,-564.7390644,0.00011088,2]
[344996594,1733911841137,-2353.23232308,0.0001109,2]
[344996595,1733911841158,-2353.23232308,0.0001109,2]
[344996596,1733911841179,-2353.23232308,0.0001109,2]
[344996597,1733911841199,-154.1539658,0.00011092,2]
[344996598,1733911841222,-154.1539658,0.00011092,2]
[344996599,1733911841244,-2322.9760756,0.00011092,2]
[344996600,1733911841265,-1931.9354026,0.00011092,2]
[344996601,1733911841288,-6207.8996092,0.00011092,2]
[344996602,1733911841309,-5167.8891149,0.00011092,2]
[344996603,1733911841329,-2660.3968964,0.00011092,2]
[344996604,1733911841350,-2216.9708102,0.00011092,2]
[344996605,1733911841371,-484.4135029,0.00011092,2]
[344996606,1733911841392,-404.0879414,0.00011092,2]
[344996607,1733911841413,-364.42,0.00011096,2]
[344996608,1733911841434,-150.0,0.00011096,2]
[344996609,1733911841457,-150.0,0.00011096,2]
[344996610,1733911841479,-150.0,0.00011096,2]
[344996611,1733911841505,-162.88,0.00011096,2]
[344996612,1733911841527,-768.51,0.00011096,2]
[344996613,1733911841548,-435.45,0.00011096,2]
[344996614,1733911841572,-150.0,0.00011098,3]